bitfinex/quotes_SOLUSD_20250112
["timestamp","ask_amount","ask_price","bid_price","bid_amount"]
[1736669299963,8.92971867,187.01,186.95,223.6517]
[1736669300163,8.92971867,186.99,186.95,223.6517]
[1736669300370,8.92971867,186.99,186.95,217.5]
[1736669303890,8.92971867,186.99,186.95,82.6]
[1736669312583,8.92971867,187.02,186.96,8.92971867]
[1736669314785,28.92971867,187.03,186.97,92.33174961]
[1736669315356,8.92971867,187.02,186.97,82.6]
[1736669318361,20.0,187.03,186.97,91.52971867]
[1736669318561,8.42001517,187.07,187.0,8.92971867]
[1736669318765,8.42001517,187.07,187.02,8.92971867]
[1736669318964,8.42001517,187.07,187.01,82.6]
[1736669319185,17.34973384,187.07,187.01,91.52971867]
[1736669319383,8.92971867,187.07,187.01,91.52971867]
[1736669320476,8.92971867,187.06,187.01,82.6]
[1736669323894,8.92971867,187.03,187.01,82.6]
[1736669324892,8.92971867,187.02,187.01,82.6]
[1736669329408,8.92971867,187.02,186.96,82.6]
[1736669329585,8.92971867,187.01,186.96,82.6]
[1736669330512,8.92971867,187.01,186.96,91.52971867]
[1736669335922,8.92971867,187.01,186.96,82.6]
[1736669344242,28.92971867,187.02,186.96,82.6]
[1736669344539,28.92971867,187.02,186.96,91.52971867]
[1736669345546,6.3783,187.05,186.97,8.92971867]
[1736669345719,8.92971867,187.05,186.98,226.42971867]
[1736669346943,28.92971867,187.06,186.99,8.92971867]
[1736669348537,8.92971867,187.05,186.99,8.92971867]
[1736669348741,8.92971867,187.05,186.99,91.52971867]
[1736669350347,8.92971867,187.05,186.99,227.23164301]
[1736669350538,8.92971867,187.05,186.99,226.42971867]
[1736669353357,20.0,187.06,187.01,8.92971867]
[1736669353526,28.92971867,187.08,187.02,8.92971867]
[1736669353851,8.92971867,187.07,187.01,8.92971867]
[1736669356358,8.92971867,187.06,187.0,226.42971867]
[1736669358262,8.92971867,187.06,187.0,217.5]
[1736669358561,8.92971867,187.05,187.0,217.5]
[1736669360338,8.92971867,187.03,187.0,217.5]
[1736669360536,8.92971867,187.02,187.0,217.5]
[1736669363855,8.92971867,187.02,187.0,82.6]
[1736669365136,8.92971867,187.01,186.96,82.6]
[1736669366259,8.92971867,187.01,187.0,700.0]
[1736669381279,20.0,187.03,187.0,700.0]
[1736669381488,28.92971867,187.03,187.0,700.0]
[1736669381648,8.92971867,187.05,187.0,700.0]
[1736669383379,20.0,187.05,187.0,708.92971867]
[1736669383862,28.92971867,187.06,187.0,708.92971867]
[1736669384064,20.0,187.06,187.01,8.92971867]
[1736669385461,8.92971867,187.08,187.02,8.92971867]
[1736669385658,8.92971867,187.08,187.03,8.92971867]
[1736669386688,8.92971867,187.08,187.02,8.92971867]
[1736669387661,8.92971867,187.08,187.02,91.52971867]
[1736669390085,8.92971867,187.07,187.02,82.6]
[1736669396093,20.0,187.1,187.02,82.6]
[1736669396297,8.92971867,187.08,187.02,82.6]
[1736669397390,20.0,187.1,187.02,82.6]
[1736669397587,8.92971867,187.06,187.02,82.6]
[1736669398089,8.92971867,187.06,187.03,700.0]
[1736669402074,8.92971867,187.05,187.03,782.6]
[1736669405180,20.0,187.08,187.03,782.6]
[1736669405384,8.92971867,187.05,187.03,782.6]
[1736669408206,20.0,187.08,187.05,691.07028133]
[1736669408401,8.92971867,187.06,187.05,691.07028133]
[1736669411089,43.776884,187.1,187.05,691.07028133]
[1736669411406,8.92971867,187.06,187.05,691.07028133]
[1736669411782,8.92971867,187.07,187.05,691.07028133]
[1736669422410,20.0,187.08,187.07,682.14056266]
[1736669422612,28.92971867,187.08,187.07,682.14056266]
[1736669430530,61.12545868,187.11,187.1,653.21084399]
[1736669430733,70.05517735,187.11,187.1,653.21084399]
[1736669432637,70.05517735,187.11,187.1,647.63134399]
[1736669433131,70.05517735,187.11,187.1,646.51544399]
[1736669433833,70.05517735,187.11,187.1,646.23644399]
[1736669434032,70.05517735,187.11,187.1,542.5122107]
[1736669434333,80.05517735,187.11,187.1,542.5122107]
[1736669434712,80.05517735,187.11,187.1,539.8342107]
[1736669434911,80.05517735,187.11,187.1,528.5942107]
[1736669435211,75.05517735,187.11,187.1,528.5942107]
[1736669435622,70.05517735,187.11,187.1,528.5942107]
[1736669440347,37.3500607,187.24,187.2,318.75563347]
[1736669440661,120.34152784,187.21,187.2,35.41664969]
[1736669440813,20.0,187.18,187.03,10.0]
[1736669441014,8.92971867,187.08,187.04,5.0]
[1736669441244,8.92971867,187.08,187.04,10.0]
[1736669446363,8.92971867,187.09,187.04,10.0]
[1736669457205,8.92971867,187.08,187.04,10.0]
[1736669460323,8.92971867,187.08,187.03,10.0]
[1736669460498,8.92971867,187.07,187.03,5.0]
[1736669461004,8.92971867,187.06,187.03,5.0]
[1736669461315,8.92971867,187.06,187.03,10.0]
[1736669462122,8.92971867,187.06,187.04,5.0]
[1736669462823,20.0,187.08,187.04,10.0]
[1736669463024,28.92971867,187.08,187.04,10.0]
[1736669473118,8.92971867,187.07,187.04,10.0]
[1736669474336,8.92971867,187.07,187.03,10.0]
[1736669474723,8.92971867,187.06,187.03,5.0]
[1736669475040,8.92971867,187.06,187.03,10.0]
[1736669475221,8.92971867,187.07,187.04,5.0]
[1736669480147,8.92971867,187.07,187.03,10.0]
[1736669480626,8.92971867,187.07,187.04,5.0]
[1736669481616,8.92971867,187.08,187.04,5.0]
[1736669484343,8.92971867,187.07,187.04,5.0]
[1736669485327,8.92971867,187.08,187.04,5.0]
[1736669486849,8.92971867,187.09,187.05,5.0]
[1736669489669,8.92971867,187.08,187.05,5.0]
[1736669491528,20.0,187.1,187.05,10.0]
[1736669491735,8.92971867,187.09,187.06,5.0]
[1736669493157,8.92971867,187.09,187.07,5.0]
[1736669496159,20.0,187.1,187.07,5.0]
[1736669496340,20.0,187.14,187.08,5.0]
[1736669496540,8.92971867,187.1,187.08,5.0]
[1736669500331,20.0,187.14,187.09,5.0]
[1736669500651,8.92971867,187.12,187.09,5.0]
[1736669507472,81.9,187.21,187.11,5.0]
[1736669507665,46.07506493,187.2,187.14,5.0]
[1736669507868,46.07506493,187.2,187.15,5.0]
[1736669508063,8.92971867,187.19,187.15,5.0]
[1736669508360,46.07506493,187.2,187.16,10.0]
[1736669509133,46.07506493,187.2,187.19,5.0]
[1736669509439,55.0047836,187.2,187.17,5.0]
[1736669509639,8.92971867,187.19,187.16,5.0]
[1736669510048,8.92971867,187.17,187.13,6.6539]
[1736669510265,46.07506493,187.2,187.17,5.0]
[1736669510451,46.07506493,187.2,187.15,5.0]
[1736669510452,8.92971867,187.19,187.15,5.0]
[1736669510643,8.92971867,187.19,187.15,10.0]
[1736669511142,8.92971867,187.19,187.16,5.0]
[1736669511563,55.0047836,187.2,187.17,10.0]
[1736669521548,8.92971867,187.19,187.17,10.0]
[1736669522383,8.92971867,187.19,187.16,10.0]
[1736669522953,8.92971867,187.18,187.15,5.0]
[1736669523386,8.92971867,187.18,187.15,28.776884]
[1736669523692,8.92971867,187.18,187.15,33.776884]
[1736669524265,8.92971867,187.18,187.15,28.776884]
[1736669525285,8.92971867,187.16,187.14,10.0]
[1736669526486,8.92971867,187.16,187.13,11.6539]
[1736669526986,8.92971867,187.16,187.14,5.0]
[1736669527280,8.92971867,187.16,187.13,6.6539]
[1736669527490,8.92971867,187.16,187.14,5.0]
[1736669527669,8.92971867,187.16,187.14,10.0]
[1736669531487,8.92971867,187.15,187.13,11.6539]
[1736669531656,8.92971867,187.15,187.13,6.6539]
[1736669532085,20.0,187.17,187.14,5.0]
[1736669532263,8.92971867,187.16,187.14,10.0]
[1736669532783,20.0,187.17,187.14,10.0]
[1736669532971,8.92971867,187.16,187.14,10.0]
[1736669535055,28.92971867,187.17,187.14,10.0]
[1736669535382,8.92971867,187.17,187.14,10.0]
[1736669538493,8.92971867,187.17,187.14,5.0]
[1736669542693,8.92971867,187.17,187.14,10.0]
[1736669542993,8.92971867,187.17,187.14,5.0]
[1736669543366,8.92971867,187.17,187.14,10.0]
[1736669543864,8.92971867,187.17,187.14,5.0]
[1736669544695,8.92971867,187.17,187.14,10.0]
[1736669545277,8.92971867,187.18,187.14,10.0]
[1736669546193,8.92971867,187.17,187.14,5.0]
[1736669546794,8.92971867,187.17,187.14,10.0]
[1736669546970,8.92971867,187.18,187.14,10.0]
[1736669552704,20.0,187.2,187.14,10.0]
[1736669552891,8.92971867,187.18,187.14,10.0]
[1736669554689,20.0,187.16,187.15,23.776884]
[1736669556000,8.92971867,187.17,187.14,23.776884]
[1736669558184,8.92971867,187.17,187.14,33.776884]
[1736669560004,20.0,187.2,187.14,33.776884]
[1736669560221,8.92971867,187.18,187.14,33.776884]
[1736669562316,20.0,187.2,187.15,5.0]
[1736669562623,8.92971867,187.19,187.15,5.0]
[1736669562920,8.92971867,187.18,187.15,5.0]
[1736669564984,8.92971867,187.17,187.15,5.0]
[1736669565217,8.92971867,187.16,187.15,23.776884]
[1736669565518,8.92971867,187.16,187.13,6.6539]
[1736669565688,8.92971867,187.14,187.13,1.6539]
[1736669565878,8.92971867,187.14,187.13,25.430784]
[1736669566087,8.92971867,187.15,187.14,23.776884]
[1736669567710,8.92971867,187.15,187.13,11.6539]
[1736669568187,8.92971867,187.16,187.13,11.6539]
[1736669569818,8.92971867,187.15,187.13,1.6539]
[1736669570515,8.92971867,187.15,187.13,6.6539]
[1736669575516,20.0,187.19,187.13,11.6539]
[1736669575923,20.0,187.15,187.13,11.6539]
[1736669576221,8.92971867,187.18,187.13,11.6539]
[1736669576520,8.92971867,187.18,187.15,23.776884]
[1736669578922,20.0,187.16,187.15,23.776884]
[1736669579823,8.92971867,187.17,187.15,23.776884]
[1736669581530,8.92971867,187.16,187.15,23.776884]
[1736669581907,8.92971867,187.16,187.14,23.776884]
[1736669582102,8.92971867,187.15,187.14,23.776884]
[1736669589634,8.92971867,187.15,187.1,10.0]
[1736669589841,8.92971867,187.12,187.1,5.0]
[1736669590141,8.92971867,187.12,187.11,23.776884]
[1736669595033,8.92971867,187.13,187.11,23.776884]
[1736669596441,8.92971867,187.13,187.11,28.776884]
[1736669600944,20.0,187.14,187.11,28.776884]
[1736669601116,28.92971867,187.14,187.11,33.776884]
[1736669602249,8.92971867,187.13,187.11,23.776884]
[1736669602452,8.92971867,187.12,187.08,6.5445]
[1736669602614,8.92971867,187.09,187.08,1.5445]
[1736669603650,8.92971867,187.09,187.08,23.776884]
[1736669609138,8.92971867,187.09,187.08,28.776884]
[1736669609454,8.92971867,187.1,187.08,28.776884]
[1736669609949,8.92971867,187.1,187.08,23.776884]
[1736669610831,8.92971867,187.09,187.08,23.776884]
[1736669628898,8.92971867,187.1,187.08,23.776884]
[1736669637805,2.61224433,187.13,187.08,23.776884]
[1736669637806,8.92971867,187.09,187.08,23.776884]
[1736669641409,20.0,187.09,187.08,23.776884]
[1736669642511,20.0,187.09,187.08,28.776884]
[1736669642809,20.0,187.1,187.09,28.776884]
[1736669646906,8.92971867,187.11,187.09,28.776884]
[1736669648807,28.92971867,187.1,187.07,5.0]
[1736669648998,8.92971867,187.09,187.07,5.0]
[1736669649919,8.92971867,187.09,187.08,23.776884]
[1736669650899,8.92971867,187.09,187.08,28.776884]
[1736669651188,28.92971867,187.1,187.08,28.776884]
[1736669653118,28.92971867,187.1,187.08,23.776884]
[1736669653287,8.92971867,187.09,187.08,23.776884]
[1736669658831,28.92971867,187.1,187.08,23.776884]
[1736669661129,8.92971867,187.09,187.08,23.776884]
[1736669662037,20.0,187.06,187.04,5.0]
[1736669662327,8.92971867,187.05,187.04,5.0]
[1736669662537,8.92971867,187.05,187.02,10.0]
[1736669662712,8.92971867,187.05,187.02,5.0]
[1736669662902,8.92971867,187.05,187.03,23.776884]
[1736669663406,8.92971867,187.05,187.03,28.776884]
[1736669663613,8.92971867,187.04,187.02,10.0]
[1736669664033,8.92971867,187.04,187.03,28.776884]
[1736669664211,20.0,187.06,187.04,33.776884]
[1736669664417,20.0,187.06,187.05,28.776884]
[1736669670636,8.92971867,187.08,187.06,23.776884]
[1736669670810,8.92971867,187.08,187.05,5.0]
[1736669671006,20.0,187.06,187.05,28.776884]
[1736669672041,20.0,187.1,187.06,23.776884]
[1736669672206,20.0,187.07,187.06,23.776884]
[1736669677331,20.0,187.07,187.05,10.0]
[1736669677641,20.0,187.07,187.05,33.776884]
[1736669677813,20.0,187.07,187.06,23.776884]
[1736669685846,20.0,187.07,187.06,28.776884]
[1736669686018,8.92971867,187.12,187.1,23.776884]
[1736669686214,81.9,187.16,187.12,23.776884]
[1736669686432,8.92971867,187.14,187.12,23.776884]
[1736669688547,8.92971867,187.14,187.12,28.776884]
[1736669693456,28.92971867,187.13,187.1,28.776884]
[1736669693751,8.92971867,187.12,187.11,23.776884]
[1736669694250,20.0,187.09,187.07,10.0]
[1736669694635,28.92971867,187.09,187.08,23.776884]
[1736669695135,28.92971867,187.09,187.08,28.776884]
[1736669695355,28.92971867,187.09,187.08,23.776884]
[1736669700458,28.92971867,187.09,187.06,5.0]
[1736669700780,8.92971867,187.07,187.04,6.5071]
[1736669700960,35.71887468,187.11,187.03,5.0]
[1736669700961,8.92971867,187.05,187.03,5.0]
[1736669701147,8.92971867,187.04,187.02,5.0]
[1736669701347,8.92971867,187.03,187.02,28.776884]
[1736669702166,8.92971867,187.03,187.02,33.776884]
[1736669702541,8.92971867,187.03,187.02,28.776884]
[1736669703041,8.92971867,187.04,187.03,23.776884]
[1736669703572,8.92971867,187.04,187.02,10.0]
[1736669704563,81.9,187.08,187.06,23.776884]
[1736669704749,90.82971867,187.08,187.06,28.776884]
[1736669704950,81.9,187.08,187.07,28.776884]
[1736669708274,8.92971867,187.1,187.07,28.776884]
[1736669709375,20.0,187.09,187.08,33.776884]
[1736669709670,20.0,187.1,187.09,28.776884]
[1736669712959,81.9,187.13,187.12,23.776884]
[1736669713469,81.9,187.13,187.12,28.776884]
[1736669716578,81.9,187.13,187.12,5.0]
[1736669716873,90.82971867,187.13,187.12,5.0]
[1736669717182,8.92971867,187.13,187.1,10.0]
[1736669717855,8.92971867,187.12,187.09,10.0]
[1736669718059,8.92971867,187.1,187.08,5.0]
[1736669718270,8.92971867,187.1,187.07,10.0]
[1736669718455,8.92971867,187.09,187.07,10.0]
[1736669719379,8.92971867,187.09,187.08,5.0]
[1736669720977,8.92971867,187.09,187.07,28.776884]
[1736669722173,8.92971867,187.09,187.07,33.776884]
[1736669722362,8.92971867,187.09,187.08,5.0]
[1736669722550,8.92971867,187.1,187.08,5.0]
[1736669722750,8.92971867,187.1,187.07,33.776884]
[1736669723181,8.92971867,187.1,187.08,5.0]
[1736669724166,8.92971867,187.1,187.07,33.776884]
[1736669724478,8.92971867,187.1,187.08,5.0]
[1736669728382,20.0,187.09,187.08,5.0]
[1736669730983,20.0,187.09,187.07,33.776884]
[1736669731182,20.0,187.09,187.07,28.776884]
[1736669732084,20.0,187.09,187.07,33.776884]
[1736669732289,20.0,187.09,187.07,28.776884]
[1736669732474,20.0,187.09,187.07,33.776884]
[1736669732675,20.0,187.09,187.07,28.776884]
[1736669732864,28.92971867,187.09,187.07,28.776884]
[1736669733063,20.0,187.09,187.07,33.776884]
[1736669733264,20.0,187.09,187.07,28.776884]
[1736669733783,20.0,187.09,187.07,33.776884]
[1736669734267,20.0,187.09,187.05,5.0]
[1736669734268,28.92971867,187.08,187.05,5.0]
[1736669734588,28.92971867,187.06,187.04,5.0]
[1736669734789,8.92971867,187.05,187.03,10.0]
[1736669734957,8.92971867,187.04,187.03,10.0]
[1736669735293,8.92971867,187.04,187.03,33.776884]
[1736669736385,8.92971867,187.04,187.03,28.776884]
[1736669737885,8.92971867,187.05,187.04,5.0]
[1736669738074,28.92971867,187.06,187.04,5.0]
[1736669742096,28.92971867,187.06,187.03,28.776884]
[1736669742300,8.92971867,187.05,187.02,11.549]
[1736669742466,8.92971867,187.05,187.03,5.0]
[1736669742962,8.92971867,187.04,187.02,5.0]
[1736669743170,28.92971867,187.03,187.01,5.0]
[1736669747697,28.92971867,187.02,187.0,5.0]
[1736669747875,8.92971867,187.01,187.0,5.0]
[1736669749113,28.92971867,187.02,187.0,5.0]
[1736669749398,20.0,187.02,187.01,5.0]
[1736669766224,20.0,187.02,187.0,10.0]
[1736669766534,20.0,187.02,187.01,5.0]
[1736669777035,20.0,187.02,187.0,10.0]
[1736669777232,20.0,187.02,187.01,5.0]
[1736669782843,28.92971867,187.02,187.0,5.0]
[1736669783028,110.82971867,187.01,186.97,5.0]
[1736669783329,8.92971867,186.98,186.97,5.0]
[1736669784527,1.87563755,186.98,186.97,5.0]
[1736669785832,8.92971867,186.99,186.98,5.0]
[1736669788223,8.92971867,186.99,186.97,5.0]
[1736669789949,8.92971867,186.99,186.98,5.0]
[1736669790327,8.92971867,186.99,186.97,5.0]
[1736669791236,8.92971867,187.0,186.98,5.0]
[1736669791929,8.92971867,187.0,186.97,5.0]
[1736669792124,8.92971867,186.99,186.97,5.0]
[1736669793554,8.92971867,186.98,186.97,5.0]
[1736669795956,8.92971867,186.98,186.95,5.0]
[1736669796255,8.92971867,186.96,186.94,5.0]
[1736669796629,20.0,186.97,186.95,10.0]
[1736669796842,81.9,187.0,186.95,33.776884]
[1736669796843,20.0,186.96,186.95,33.776884]
[1736669798754,20.0,186.96,186.95,28.776884]
[1736669799159,28.92971867,186.97,186.94,5.0]
[1736669799464,8.92971867,186.96,186.94,5.0]
[1736669800966,28.92971867,186.96,186.94,5.0]
[1736669801156,28.92971867,186.96,186.95,5.0]
[1736669801558,20.0,186.96,186.95,5.0]
[1736669804369,20.0,186.96,186.94,5.0]
[1736669806963,8.92971867,186.95,186.94,5.0]
[1736669814184,8.92971867,186.95,186.93,5.0]
[1736669815986,6.2013,187.03,186.93,5.0]
[1736669815987,81.9,186.99,186.95,28.776884]
[1736669816178,81.9,186.99,186.98,5.0]
[1736669816683,81.9,186.99,186.97,5.0]
[1736669817085,90.82971867,186.99,186.97,5.0]
[1736669817286,81.9,186.99,186.97,5.0]
[1736669817785,90.82971867,186.99,186.97,5.0]
[1736669817987,81.9,186.99,186.97,5.0]
[1736669818161,90.82971867,186.99,186.97,5.0]
[1736669818356,81.9,186.99,186.97,5.0]
[1736669818563,90.82971867,186.99,186.97,5.0]
[1736669819779,81.9,186.99,186.97,5.0]
[1736669820090,90.82971867,186.99,186.97,5.0]
[1736669820389,90.82971867,186.99,186.98,5.0]
[1736669820987,90.82971867,186.99,186.97,5.0]
[1736669822160,81.9,186.99,186.97,5.0]
[1736669822367,81.9,186.99,186.98,5.0]
[1736669825489,81.9,186.99,186.98,33.776884]
[1736669825692,20.0,187.01,187.0,28.776884]
[1736669825893,81.9,187.05,187.01,5.0]
[1736669826092,90.82971867,187.05,187.01,5.0]
[1736669826405,20.0,187.02,187.01,5.0]
[1736669826601,29.78483781,187.07,187.03,10.0]
[1736669826805,38.71455648,187.07,187.04,5.0]
[1736669826974,20.0,187.05,187.04,5.0]
[1736669828106,8.92971867,187.07,187.04,5.0]
[1736669828107,81.9,187.14,187.04,5.0]
[1736669828416,20.0,187.05,187.04,5.0]
[1736669831009,8.92971867,187.08,187.05,33.776884]
[1736669831314,20.0,187.06,187.05,33.776884]
[1736669832281,20.0,187.09,187.05,33.776884]
[1736669832481,28.92971867,187.09,187.05,33.776884]
[1736669833814,81.9,187.12,187.07,28.776884]
[1736669834112,8.92971867,187.1,187.08,5.0]
[1736669834318,20.0,187.09,187.08,5.0]
[1736669835420,20.0,187.09,187.08,10.0]
[1736669836802,20.0,187.09,187.08,33.776884]
[1736669839680,90.82971867,187.12,187.09,5.0]
[1736669839880,10.4941,187.21,187.11,5.0]
[1736669839881,81.9,187.18,187.11,5.0]
[1736669840115,8.92971867,187.13,187.11,5.0]
[1736669841225,8.92971867,187.12,187.11,5.0]
[1736669841412,8.92971867,187.12,187.1,5.0]
[1736669841614,8.92971867,187.11,187.09,10.0]
[1736669842318,8.92971867,187.1,187.09,10.0]
[1736669842824,8.92971867,187.1,187.09,5.0]
[1736669843634,8.92971867,187.1,187.09,10.0]
[1736669845297,8.92971867,187.1,187.09,5.0]
[1736669846720,8.92971867,187.1,187.09,10.0]
[1736669848026,20.0,187.1,187.09,10.0]
[1736669848232,8.92971867,187.11,187.09,10.0]
[1736669849519,20.0,187.11,187.1,28.776884]
[1736669851802,8.92971867,187.12,187.11,23.776884]
[1736669857443,8.92971867,187.12,187.1,10.0]
[1736669857604,8.92971867,187.13,187.11,5.0]
[1736669858006,8.92971867,187.13,187.12,5.0]
[1736669859339,20.0,187.16,187.14,5.0]
[1736669859512,8.92971867,187.16,187.15,5.0]
[1736669859907,28.92971867,187.16,187.15,5.0]
[1736669861421,20.0,187.16,187.15,5.0]
[1736669861623,28.92971867,187.16,187.15,5.0]
[1736669884550,28.92971867,187.16,187.13,5.0]
[1736669884749,8.92971867,187.14,187.13,5.0]
[1736669885248,8.92971867,187.14,187.13,10.0]
[1736669885460,8.92971867,187.14,187.13,5.0]
[1736669886343,8.92971867,187.14,187.13,10.0]
[1736669889071,8.92971867,187.14,187.13,5.0]
[1736669890059,8.92971867,187.14,187.13,10.0]
[1736669894868,8.92971867,187.14,187.13,5.0]
[1736669895043,8.92971867,187.14,187.12,5.0]
[1736669895242,8.92971867,187.13,187.12,5.0]
[1736669902585,90.82971867,187.15,187.14,5.0]
[1736669902945,81.9,187.15,187.14,5.0]
[1736669903259,90.82971867,187.15,187.14,5.0]
[1736669904384,81.9,187.15,187.14,10.0]
[1736669905681,20.0,187.16,187.14,10.0]
[1736669906145,20.0,187.16,187.15,5.0]
[1736669910585,28.92971867,187.16,187.15,5.0]
[1736669911284,28.92971867,187.16,187.14,5.0]
[1736669911486,20.0,187.12,187.11,5.0]
[1736669911658,28.92971867,187.12,187.11,5.0]
[1736669913587,8.92971867,187.12,187.11,5.0]
[1736669913888,20.0,187.11,187.1,5.0]
[1736669914059,28.92971867,187.11,187.1,5.0]
[1736669917308,8.92971867,187.11,187.1,5.0]
[1736669917606,28.92971867,187.11,187.1,5.0]
[1736669922109,20.0,187.11,187.1,5.0]
[1736669933296,20.0,187.11,187.1,33.776884]
[1736669935318,90.82971867,187.13,187.1,33.776884]
[1736669935531,90.82971867,187.13,187.12,5.0]
[1736669937618,81.9,187.18,187.15,5.0]
[1736669937823,8.92971867,187.17,187.15,5.0]
[1736669940933,28.92971867,187.16,187.15,5.0]
[1736669942137,20.0,187.16,187.15,5.0]
[1736669942342,28.92971867,187.16,187.15,5.0]
[1736669942502,20.0,187.16,187.15,5.0]
[1736669942838,28.92971867,187.16,187.15,5.0]
[1736669945530,20.0,187.15,187.14,10.0]
[1736669945738,8.92971867,187.17,187.14,10.0]
[1736669946122,2.16914225,187.2,187.15,5.0]
[1736669946326,81.9,187.19,187.17,10.0]
[1736669946526,90.82971867,187.19,187.17,10.0]
[1736669948636,8.92971867,187.18,187.17,10.0]
[1736669949631,81.9,187.19,187.17,10.0]
[1736669949948,8.92971867,187.18,187.17,10.0]
[1736669950443,8.92971867,187.18,187.16,5.0]
[1736669950647,90.82971867,187.17,187.14,5.0]
[1736669950838,8.92971867,187.15,187.14,5.0]
[1736669951235,8.92971867,187.15,187.14,10.0]
[1736669951853,8.92971867,187.15,187.14,5.0]
[1736669952063,28.92971867,187.15,187.14,5.0]
[1736669952351,20.0,187.13,187.11,5.0]
[1736669952555,8.92971867,187.12,187.11,5.0]
[1736669953330,8.92971867,187.12,187.1,5.0]
[1736669953528,8.92971867,187.11,187.1,5.0]
[1736669953739,8.92971867,187.11,187.09,5.0]
[1736669954044,8.92971867,187.1,187.08,5.0]
[1736669954358,8.92971867,187.09,187.08,5.0]
[1736669955666,8.92971867,187.09,187.07,5.0]
[1736669955969,8.92971867,187.08,187.07,5.0]
[1736669956165,8.92971867,187.08,187.05,10.0]
[1736669956472,8.92971867,187.08,187.07,5.0]
[1736669957406,8.92971867,187.13,187.12,5.0]
[1736669957674,8.92971867,187.13,187.11,5.0]
[1736669957879,8.92971867,187.12,187.1,5.0]
[1736669958169,8.92971867,187.11,187.1,5.0]
[1736669961853,8.92971867,187.11,187.1,10.0]
[1736669962056,8.92971867,187.11,187.1,5.0]
[1736669962791,8.92971867,187.11,187.1,10.0]
[1736669962958,8.92971867,187.13,187.11,5.0]
[1736669963589,20.0,187.12,187.11,5.0]
[1736669966858,28.92971867,187.12,187.11,5.0]
[1736669967771,20.0,187.12,187.11,5.0]
[1736669970287,28.92971867,187.12,187.1,5.0]
[1736669970465,8.92971867,187.11,187.1,5.0]
[1736669971295,28.92971867,187.12,187.1,5.0]
[1736669971599,20.0,187.12,187.1,10.0]
[1736669971762,20.0,187.11,187.1,10.0]
[1736669974497,8.92971867,187.13,187.11,5.0]
[1736669976705,28.92971867,187.12,187.11,5.0]
[1736669982026,20.0,187.12,187.11,5.0]
[1736669989463,28.92971867,187.12,187.11,5.0]
[1736669989627,28.92971867,187.12,187.1,10.0]
[1736669990560,28.92971867,187.12,187.11,5.0]
[1736669991836,28.92971867,187.12,187.09,6.627]
[1736669992157,8.92971867,187.1,187.09,5.0]
[1736669992661,8.92971867,187.1,187.08,5.0]
[1736669992835,8.92971867,187.09,187.08,5.0]
[1736669993156,8.92971867,187.09,187.07,5.0]
[1736669993746,8.92971867,187.09,187.08,5.0]
[1736669996343,8.92971867,187.1,187.08,5.0]
[1736669997677,8.92971867,187.1,187.09,5.0]
[1736670000571,90.82971867,187.11,187.1,5.0]
[1736670002174,90.82971867,187.11,187.08,5.0]
[1736670002378,90.82971867,187.11,187.1,5.0]
[1736670004498,8.92971867,187.11,187.1,5.0]
[1736670004983,8.92971867,187.11,187.09,5.0]
[1736670005369,8.92971867,187.11,187.1,5.0]
[1736670008478,8.92971867,187.11,187.09,5.0]
[1736670008680,20.0,187.09,187.08,5.0]
[1736670008977,8.92971867,187.1,187.08,5.0]
[1736670009582,8.92971867,187.1,187.09,5.0]